lending/lending_fUSD_20250501
["ID","MTS","AMOUNT","RATE_DAILY","PERIOD"]
[359515092,1746085847878,-500.0,0.00041759,60]
[359515093,1746085847887,-500.0,0.00041759,60]
[359515094,1746085847896,-39380.61,0.000418,60]
[359515095,1746085847907,-2000.0,0.00041833,120]
[359515096,1746085847917,-150.0,0.0004189,2]
[359515097,1746085847926,-150.0,0.0004189,30]
[359515098,1746085847935,-1237.792,0.00041895,2]
[359515099,1746085847945,-923.0,0.00041895,2]
[359515100,1746085847954,-797.0,0.00041895,2]
[359515101,1746085847963,-1289.0,0.00041895,2]
[359515102,1746085847972,-580.0,0.00041895,2]
[359515103,1746085847982,-2183.378,0.00041895,2]
[359515104,1746085847991,-876.0,0.00041895,2]
[359515105,1746085848000,-153.0,0.00041895,2]
[359515106,1746085848010,-878.0,0.00041895,2]
[359515107,1746085848019,-4003.0,0.00041895,2]
[359515108,1746085848029,-299.43261,0.00041895,30]
[359515109,1746085848039,-949.05,0.00041986,2]
[359515110,1746085848048,-50000.0,0.00042,42]
[359515111,1746085848058,-1005.0,0.00042,7]
[359515112,1746085848068,-30000.0,0.00042,7]
[359515113,1746085848078,-168.611437,0.00042,30]
[359515114,1746085848087,-192.14249354,0.00042027,2]
[359515115,1746085848097,-150.0,0.00042033,30]
[359515116,1746085848106,-150.0,0.00042033,2]
[359515117,1746085848115,-299.43261,0.00042095,30]
[359515118,1746085848125,-150.0,0.00042175,30]
[359515119,1746085848134,-928.589,0.000422,63]
[359515120,1746085848143,-207.0,0.0004224,30]
[359515121,1746085848154,-214.0,0.0004224,2]
[359515122,1746085848164,-299.43261,0.00042295,30]
[359515123,1746085848173,-5690.15,0.000423,14]
[359515124,1746085848182,-152.0,0.00042303,5]
[359515125,1746085848192,-150.0,0.00042318,30]
[359515126,1746085848201,-1000.0,0.00042334,14]
[359515127,1746085848211,-400.0,0.0004237,3]
[359515128,1746085848221,-700.0,0.0004237,3]
[359515129,1746085848230,-5550.29541048,0.00042452,46]
[359515130,1746085848240,-150.0,0.0004246,30]
[359515131,1746085848250,-150.0,0.00042465,120]
[359515132,1746085848259,-299.43261,0.00042495,30]
[359515133,1746085848268,-2000.0,0.000425,2]
[359515134,1746085848278,-5000.0,0.000425,120]
[359515135,1746085848287,-150.0,0.00042559,2]
[359515136,1746085848296,-170.3147408,0.0004256,120]
[359515137,1746085848307,-150.0,0.00042603,30]
[359515138,1746085848317,-299.43261,0.00042695,30]
[359515139,1746085848327,-160.0,0.000427,69]
[359515140,1746085848336,-150.0,0.00042745,30]
[359515141,1746085848346,-39380.61,0.000428,60]
[359515142,1746085848355,-150.0,0.00042826,2]
[359515143,1746085848365,-500.0,0.00042855,60]
[359515144,1746085848375,-500.0,0.00042855,60]
[359515145,1746085848384,-17591.84039721,0.0004288,120]
[359515146,1746085848393,-151.0,0.0004288,14]
[359515147,1746085848404,-189.629939,0.0004288,14]
[359515148,1746085848413,-189.629939,0.0004288,14]
[359515149,1746085848422,-151.0,0.0004288,14]
[359515150,1746085848432,-151.0,0.0004288,14]
[359515151,1746085848441,-151.0,0.0004288,14]
[359515152,1746085848451,-166.497068,0.0004288,14]
[359515153,1746085848460,-150.0,0.00042888,30]
[359515154,1746085848469,-299.43261,0.00042895,30]
[359515155,1746085848480,-157.2364078,0.00042959,2]
[359515156,1746085848490,-236.764178,0.00042959,14]
[359515157,1746085848509,-236.764178,0.00042959,14]
[359515158,1746085848523,-1280.16887,0.00042959,14]
[359515159,1746085848542,-1280.16887,0.00042959,14]
[359515160,1746085848559,-188.82,0.0004298,120]
[359515161,1746085848573,-150.5,0.0004299,120]
[359515162,1746085848590,-50000.0,0.00043,43]
[359515163,1746085848608,-30000.0,0.00043,7]
[359515164,1746085848625,-860.58,0.00043,120]
[359515165,1746085848644,-394.4,0.00043,120]
[359515166,1746085848663,-445.52,0.00043,120]
[359515167,1746085848682,-214.0,0.00043,7]
[359515168,1746085848699,-152.97203691,0.00043,2]
[359515169,1746085848712,-199.59857846,0.00043,120]
[359515170,1746085848730,-151.0,0.00043,14]
[359515171,1746085848743,-164.671152,0.00043,14]
[359515172,1746085848762,-177.823338,0.00043,14]
[359515173,1746085848775,-177.823338,0.00043,14]
[359515174,1746085848790,-151.0,0.00043,14]
[359515175,1746085848804,-1948.600049,0.00043,14]
[359515176,1746085848820,-1948.600049,0.00043,14]
[359515177,1746085848835,-2698.719256,0.00043,14]
[359515178,1746085848851,-2698.719256,0.00043,14]
[359515179,1746085848865,-151.0,0.00043,14]
[359515180,1746085848882,-553.064693,0.00043,14]
[359515181,1746085848896,-553.064693,0.00043,14]
[359515182,1746085848915,-151.0,0.00043,14]
[359515183,1746085848934,-900.0,0.00043,2]
[359515184,1746085848948,-151.0,0.00043,14]
[359515185,1746085848963,-168.611437,0.00043002,2]
[359515186,1746085848979,-150.0,0.00043007,2]
[359515187,1746085848994,-150.0,0.00043023,2]
[359515188,1746085849009,-150.0,0.0004303,30]
[359515189,1746085849024,-1000.0,0.00043046,14]
[359515190,1746085849039,-299.43261,0.00043095,30]
[359515191,1746085849054,-1255.35,0.00043124,5]
[359515192,1746085849069,-1228.27,0.00043124,5]
[359515193,1746085849083,-1226.44,0.00043138,5]
[359515194,1746085849098,-150.0,0.00043173,30]
[359515195,1746085849113,-2426.24,0.000432,14]
[359515196,1746085849128,-300.0,0.000432,7]
[359515197,1746085849143,-300.0,0.000432,7]
[359515198,1746085849160,-300.0,0.000432,7]
[359515199,1746085849175,-300.0,0.000432,7]
[359515200,1746085849190,-309.35126671,0.000432,7]
[359515201,1746085849205,-409.04,0.000432,33]
[359515202,1746085849220,-409.04,0.000432,33]
[359515203,1746085849235,-409.04,0.000432,33]
[359515204,1746085849250,-409.04,0.000432,33]
[359515205,1746085849265,-409.04,0.000432,33]
[359515206,1746085849281,-409.04,0.000432,33]
[359515207,1746085849296,-409.04,0.000432,33]
[359515208,1746085849314,-409.04,0.000432,33]
[359515209,1746085849330,-409.04,0.000432,33]
[359515210,1746085849347,-409.04,0.000432,33]
[359515211,1746085849363,-409.04,0.000432,33]
[359515212,1746085849379,-409.04,0.000432,33]
[359515213,1746085849394,-409.04,0.000432,33]
[359515214,1746085849411,-409.04,0.000432,33]
[359515215,1746085849426,-409.04,0.000432,33]
[359515216,1746085849442,-409.04,0.000432,33]
[359515217,1746085849457,-409.04,0.000432,33]
[359515218,1746085849473,-409.04,0.000432,33]
[359515219,1746085849489,-409.04,0.000432,33]
[359515220,1746085849504,-409.04,0.000432,33]
[359515221,1746085849520,-409.04,0.000432,33]
[359515222,1746085849535,-409.04,0.000432,33]
[359515223,1746085849551,-409.04,0.000432,33]
[359515224,1746085849566,-409.04,0.000432,33]
[359515225,1746085849581,-1265.9829967,0.0004328,4]
[359515226,1746085849596,-299.43261,0.00043295,30]
[359515227,1746085849612,-1065.32006898,0.000433,10]
[359515228,1746085849628,-5690.15,0.000433,14]
[359515229,1746085849643,-150.0,0.00043301,2]
[359515230,1746085849660,-5550.29541048,0.00043314,48]
[359515231,1746085849675,-366.55894193,0.00043315,14]
[359515232,1746085849690,-150.0,0.00043315,30]
[359515233,1746085849706,-4763.33526,0.00043315,30]
[359515234,1746085849721,-168.611437,0.00043317,60]
[359515235,1746085849736,-150.0,0.00043317,2]
[359515236,1746085849755,-150.0,0.00043328,2]
[359515237,1746085849770,-5000.0,0.00043354,15]
[359515238,1746085849787,-207.0,0.0004336,30]
[359515239,1746085849802,-214.0,0.0004336,2]
[359515240,1746085849816,-150.0,0.00043433,2]
[359515241,1746085849831,-1000.0,0.00043446,14]
[359515242,1746085849846,-150.0,0.00043458,30]
[359515243,1746085849862,-200.0,0.00043468,14]
[359515244,1746085849876,-299.43261,0.00043495,30]
[359515245,1746085849891,-35149.97,0.000435,2]
[359515246,1746085850111,-18378.0,0.00043527,10]
[359515247,1746085850124,-150.0,0.00043539,2]
[359515248,1746085850134,-2000.0,0.00043565,120]
[359515249,1746085850144,-257.34,0.000436,120]
[359515250,1746085850155,-1271.45,0.000436,120]
[359515251,1746085850165,-1311.79,0.000436,120]
[359515252,1746085850174,-39380.61,0.000436,60]
[359515253,1746085850184,-151.0,0.000436,14]
[359515254,1746085850193,-151.0,0.000436,14]
[359515255,1746085850203,-151.0,0.000436,14]
[359515256,1746085850213,-151.0,0.000436,14]
[359515257,1746085850222,-186.517645,0.000436,14]
[359515258,1746085850231,-271.881675,0.000436,14]
[359515259,1746085850241,-333.188523,0.000436,14]
[359515260,1746085850250,-151.0,0.000436,14]
[359515261,1746085850259,-333.188523,0.000436,14]
[359515262,1746085850268,-151.0,0.000436,14]
[359515263,1746085850278,-151.0,0.000436,14]
[359515264,1746085850287,-198.713687,0.000436,14]
[359515265,1746085850296,-151.0,0.000436,14]
[359515266,1746085850308,-198.713687,0.000436,14]
[359515267,1746085850318,-151.0,0.000436,14]
[359515268,1746085850327,-151.0,0.000436,14]
[359515269,1746085850336,-151.0,0.000436,14]
[359515270,1746085850346,-150.0,0.000436,30]
[359515271,1746085850356,-150.0,0.00043607,2]
[359515272,1746085850366,-211.34,0.00043619,2]
[359515273,1746085850376,-150.0,0.00043619,2]
[359515274,1746085850385,-1000.0,0.00043633,14]
[359515275,1746085850395,-299.43261,0.00043695,30]
[359515276,1746085850404,-160.0,0.000437,72]
[359515277,1746085850414,-455.41445022,0.000437,120]
[359515278,1746085850423,-150.0,0.00043743,30]
[359515279,1746085850433,-150.0,0.00043761,2]
[359515280,1746085850442,-150.0,0.00043763,2]
[359515281,1746085850452,-500.0,0.00043767,30]
[359515282,1746085850461,-150.0,0.0004377,2]
[359515283,1746085850471,-483.60897498,0.000438,30]
[359515284,1746085850480,-150.0,0.000438,2]
[359515285,1746085850490,-168.611437,0.00043823,60]
[359515286,1746085850500,-2315.08834873,0.0004383,30]
[359515287,1746085850510,-450.0,0.00043835,2]
[359515288,1746085850521,-450.0,0.00043835,2]
[359515289,1746085850531,-450.0,0.00043835,2]
[359515290,1746085850540,-450.0,0.00043835,2]
[359515291,1746085850554,-450.0,0.00043835,2]
[359515292,1746085850565,-500.0,0.00043835,31]
[359515293,1746085850575,-287.5586945,0.00043835,15]
[359515294,1746085850584,-500.0,0.00043835,2]
[359515295,1746085850594,-500.0,0.00043835,2]
[359515296,1746085850604,-500.0,0.00043835,2]
[359515297,1746085850613,-500.0,0.00043835,2]
[359515298,1746085850623,-500.0,0.00043835,2]
[359515299,1746085850633,-500.0,0.00043835,2]
[359515300,1746085850643,-500.0,0.00043835,2]
[359515301,1746085850653,-500.0,0.00043835,2]
[359515302,1746085850663,-500.0,0.00043835,2]
[359515303,1746085850673,-500.0,0.00043835,2]
[359515304,1746085850687,-500.0,0.00043835,2]
[359515305,1746085850697,-500.0,0.00043835,2]
[359515306,1746085850707,-500.0,0.00043835,2]
[359515307,1746085850716,-500.0,0.00043835,2]
[359515308,1746085850726,-500.0,0.00043835,2]
[359515309,1746085850734,-622.42034215,0.00043835,2]
[359515310,1746085850743,-500.0,0.00043835,31]
[359515311,1746085850755,-500.0,0.00043835,31]
[359515312,1746085850763,-500.0,0.00043835,31]
[359515313,1746085850772,-315.2097698,0.00043835,31]
[359515314,1746085850781,-500.0,0.00043835,31]
[359515315,1746085850790,-500.0,0.00043835,31]
[359515316,1746085850799,-500.0,0.00043835,31]
[359515317,1746085850808,-500.0,0.00043835,31]
[359515318,1746085850817,-500.0,0.00043835,31]
[359515319,1746085850826,-500.0,0.00043835,31]
[359515320,1746085850835,-500.0,0.00043835,31]
[359515321,1746085850844,-500.0,0.00043835,31]
[359515322,1746085850853,-500.0,0.00043835,31]
[359515323,1746085850862,-500.0,0.00043835,31]
[359515324,1746085850871,-500.0,0.00043835,31]
[359515325,1746085850880,-500.0,0.00043835,31]
[359515326,1746085850889,-500.0,0.00043835,31]
[359515327,1746085850898,-500.0,0.00043835,31]
[359515328,1746085850908,-357.03972644,0.00043835,31]
[359515329,1746085850917,-500.0,0.00043835,31]
[359515330,1746085850926,-557.14722446,0.00043835,31]
[359515331,1746085850935,-500.0,0.00043835,31]
[359515332,1746085850944,-630.63738424,0.00043835,31]
[359515333,1746085850953,-500.0,0.00043835,31]
[359515334,1746085850962,-504.62661682,0.00043835,31]
[359515335,1746085850971,-151.0,0.00043835,14]
[359515336,1746085850979,-151.0,0.00043835,14]
[359515337,1746085850988,-874.402694,0.00043835,14]
[359515338,1746085850998,-538.39648351,0.00043835,31]
[359515339,1746085851006,-874.402694,0.00043835,14]
[359515340,1746085851015,-500.0,0.00043835,20]
[359515341,1746085851024,-358.496672,0.00043835,14]
[359515342,1746085851033,-358.496672,0.00043835,14]
[359515343,1746085851043,-150.0,0.00043835,120]
[359515344,1746085851053,-1699.57,0.00043835,120]
[359515345,1746085851062,-1002.912,0.00043835,2]
[359515346,1746085851071,-408.0016555,0.00043836,10]
[359515347,1746085851079,-176.59,0.00043836,30]
[359515348,1746085851088,-500.0,0.00043836,31]
[359515349,1746085851097,-518.69371988,0.00043836,31]
[359515350,1746085851106,-518.69371988,0.00043836,31]
[359515351,1746085851115,-518.69371988,0.00043836,31]
[359515352,1746085851123,-518.69371988,0.00043836,31]
[359515353,1746085851132,-518.69371988,0.00043836,31]
[359515354,1746085851141,-518.69371988,0.00043836,31]
[359515355,1746085851151,-518.69371988,0.00043836,31]
[359515356,1746085851160,-518.69371988,0.00043836,31]
[359515357,1746085851168,-518.69371988,0.00043836,31]
[359515358,1746085851177,-518.69371988,0.00043836,31]
[359515359,1746085851186,-518.69371988,0.00043836,31]
[359515360,1746085851195,-518.69371988,0.00043836,31]
[359515361,1746085851204,-518.69371988,0.00043836,31]
[359515362,1746085851213,-539.44146868,0.00043836,31]
[359515363,1746085851222,-539.44146868,0.00043836,31]
[359515364,1746085851232,-539.44146868,0.00043836,31]
[359515365,1746085851240,-539.44146868,0.00043836,31]
[359515366,1746085851249,-539.44146868,0.00043836,31]
[359515367,1746085851258,-539.44146868,0.00043836,31]
[359515368,1746085851266,-539.44146868,0.00043836,31]
[359515369,1746085851275,-539.44146868,0.00043836,31]
[359515370,1746085851284,-539.44146868,0.00043836,31]
[359515371,1746085851293,-530.98535917,0.00043836,31]
[359515372,1746085851301,-530.98535917,0.00043836,31]
[359515373,1746085851311,-530.98535917,0.00043836,31]
[359515374,1746085851319,-530.98535917,0.00043836,31]
[359515375,1746085851328,-530.98535917,0.00043836,31]
[359515376,1746085851336,-500.0,0.00043836,31]
[359515377,1746085851345,-500.0,0.00043836,31]
[359515378,1746085851354,-500.0,0.00043836,31]
[359515379,1746085851363,-500.0,0.00043836,31]
[359515380,1746085851372,-500.0,0.00043836,31]
[359515381,1746085851381,-500.0,0.00043836,31]
[359515382,1746085851390,-346.0823103,0.00043836,31]
[359515383,1746085851399,-150.0,0.00043863,2]
[359515384,1746085851410,-150.0,0.00043864,2]
[359515385,1746085851419,-150.0,0.00043871,2]
[359515386,1746085851428,-150.0,0.00043885,30]
[359515387,1746085851437,-299.43261,0.00043895,30]
[359515388,1746085851446,-2000.0,0.000439,30]
[359515389,1746085851454,-2000.0,0.000439,30]
[359515390,1746085851463,-2000.0,0.000439,30]
[359515391,1746085851471,-2000.0,0.000439,30]
[359515392,1746085851480,-2000.0,0.000439,30]
[359515393,1746085851489,-2000.0,0.000439,30]
[359515394,1746085851498,-2000.0,0.000439,30]
[359515395,1746085851507,-2000.0,0.000439,30]
[359515396,1746085851515,-2000.0,0.000439,30]
[359515397,1746085851524,-2213.1174,0.000439,30]
[359515398,1746085851533,-1002.37253846,0.00043945,14]
[359515399,1746085851541,-500.0,0.00043951,120]
[359515400,1746085851550,-601.77631564,0.00043951,120]
[359515401,1746085851559,-150.0,0.00043975,2]
[359515402,1746085851569,-500.0,0.00043988,30]
[359515403,1746085851577,-450.0,0.00043998,2]
[359515404,1746085851586,-450.0,0.00043998,2]
[359515405,1746085851595,-450.0,0.00043998,2]
[359515406,1746085851603,-450.0,0.00043998,2]
[359515407,1746085851612,-450.0,0.00043998,2]
[359515408,1746085851621,-500.0,0.00043998,31]
[359515409,1746085851631,-500.0,0.00043998,31]
[359515410,1746085851639,-500.0,0.00043998,31]
[359515411,1746085851648,-450.0,0.00043999,2]
[359515412,1746085851659,-450.0,0.00043999,2]
[359515413,1746085851669,-450.0,0.00043999,2]
[359515414,1746085851678,-293516.74132464,0.00043999,14]
[359515415,1746085851687,-500.0,0.00043999,31]
[359515416,1746085851697,-296.478012,0.00043999,14]
[359515417,1746085851706,-151.0,0.00043999,14]
[359515418,1746085851715,-151.0,0.00043999,14]
[359515419,1746085851724,-285.754276,0.00043999,14]
[359515420,1746085851733,-208.642372,0.00043999,14]
[359515421,1746085851743,-208.642372,0.00043999,14]
[359515422,1746085851754,-308.216953,0.00043999,14]
[359515423,1746085851763,-308.216953,0.00043999,14]
[359515424,1746085851773,-175.663975,0.00043999,14]
[359515425,1746085851783,-175.663975,0.00043999,14]
[359515426,1746085851792,-220.216538,0.00043999,14]
[359515427,1746085851801,-220.216538,0.00043999,14]
[359515428,1746085851811,-151.0,0.00043999,14]
[359515429,1746085851822,-50000.0,0.00044,44]
[359515430,1746085851831,-30000.0,0.00044,7]
[359515431,1746085851841,-1391.40983245,0.00044,10]
[359515432,1746085851850,-152.0,0.00044,30]
[359515433,1746085851860,-153.70925441,0.00044,60]
[359515434,1746085851869,-500.0,0.00044,120]
[359515435,1746085851878,-500.0,0.00044,120]
[359515436,1746085851887,-500.0,0.00044,90]
[359515437,1746085851897,-1000.0,0.00044007,14]
[359515438,1746085851908,-150.0,0.00044009,2]
[359515439,1746085851917,-1316.0,0.00044011,30]
[359515440,1746085851927,-150.0,0.00044013,2]
[359515441,1746085851936,-150.0,0.00044024,2]
[359515442,1746085851945,-150.0,0.00044028,30]
[359515443,1746085851954,-500.0,0.00044041,30]
[359515444,1746085851964,-150.0,0.00044042,2]
[359515445,1746085851973,-150.0,0.00044044,2]
[359515446,1746085851982,-150.0,0.00044048,2]
[359515447,1746085851992,-150.0,0.00044051,2]
[359515448,1746085852001,-150.0,0.00044067,2]
[359515449,1746085852010,-310.79999712,0.00044109,20]
[359515450,1746085852020,-150.0,0.0004411,2]
[359515451,1746085852029,-150.0,0.00044122,2]
[359515452,1746085852039,-150.0,0.00044145,14]
[359515453,1746085852048,-183.69763913,0.00044158,2]
[359515454,1746085852058,-150.0,0.0004417,30]
[359515455,1746085852067,-5550.29541048,0.00044176,50]
[359515456,1746085852076,-150.0,0.0004419,2]
[359515457,1746085852086,-5690.15,0.000442,14]
[359515458,1746085852095,-531.4936995,0.00044223,120]
[359515459,1746085852105,-150.0,0.00044242,2]
[359515460,1746085852115,-150.0,0.00044246,2]
[359515461,1746085852124,-150.0,0.00044249,14]
[359515462,1746085852134,-949.05,0.0004425,2]
[359515463,1746085852143,-150.0,0.00044253,2]
[359515464,1746085852154,-150.0,0.0004427,2]
[359515465,1746085852163,-450.0,0.00044272,2]
[359515466,1746085852174,-450.0,0.00044272,2]
[359515467,1746085852183,-450.0,0.00044272,2]
[359515468,1746085852193,-450.0,0.00044272,2]
[359515469,1746085852204,-450.0,0.00044272,2]
[359515470,1746085852214,-450.0,0.00044273,2]
[359515471,1746085852223,-450.0,0.00044273,2]
[359515472,1746085852233,-450.0,0.00044273,2]
[359515473,1746085852243,-299.43261,0.00044295,30]
[359515474,1746085852253,-150.0,0.00044295,2]
[359515475,1746085852263,-35149.97,0.000443,2]
[359515476,1746085852272,-35149.97,0.000443,2]
[359515477,1746085852281,-150.0,0.00044306,2]
[359515478,1746085852429,-150.0,0.00044313,30]
[359515479,1746085852439,-500.0,0.00044315,30]
[359515480,1746085852449,-150.0,0.00044353,2]
[359515481,1746085852458,-5000.0,0.00044362,10]
[359515482,1746085852468,-93667.7615185,0.0004437,2]
[359515483,1746085852477,-498.98551833,0.0004439,120]
[359515484,1746085852487,-3600.0,0.000444,2]
[359515485,1746085852496,-39380.61,0.000444,60]
[359515486,1746085852506,-35149.97,0.000444,2]
[359515487,1746085852515,-150.0,0.00044401,2]
[359515488,1746085852524,-150.0,0.00044412,2]
[359515489,1746085852534,-150.0,0.00044438,2]
[359515490,1746085852543,-262.52266712,0.0004444,120]
[359515491,1746085852553,-150.0,0.00044449,2]
[359515492,1746085852562,-150.0,0.00044455,30]
[359515493,1746085852572,-168.568969,0.00044459,14]
[359515494,1746085852581,-150.0,0.00044459,2]
[359515495,1746085852591,-1316.0,0.00044464,30]
[359515496,1746085852600,-213.0,0.0004448,30]
[359515497,1746085852610,-211.0,0.0004448,30]
[359515498,1746085852623,-207.0,0.0004448,30]
[359515499,1746085852633,-214.0,0.0004448,30]
[359515500,1746085852642,-150.0,0.00044489,2]
[359515501,1746085852652,-299.43261,0.00044495,30]
[359515502,1746085852661,-500.0,0.00044499,120]
[359515503,1746085852671,-334055.89217686,0.000445,32]
[359515504,1746085853032,-285.62745002,0.000445,32]
[359515557,1746086049232,765.669585,0.00019283,2]
[359515621,1746086342031,250.0,0.0003,30]
[359515623,1746086446990,199.677,0.0002,5]
[359515892,1746087032270,-173.69823558,0.0001938,2]
[359515893,1746087032280,-1200.0,0.00019872,2]
[359515894,1746087032290,-293.45115578,0.00019873,2]
[359515895,1746087032299,-500.81204882,0.00019873,2]
[359515896,1746087032309,-500.0,0.00019873,2]
[359515897,1746087032318,-500.0,0.00019873,2]
[359515898,1746087032328,-200.0,0.00019884,2]
[359515899,1746087032338,-300.0,0.00019886,2]
[359515900,1746087032348,-1516.57555653,0.00019887,2]
[359515901,1746087032358,-1516.57555653,0.00019887,2]
[359515902,1746087032367,-1516.57555653,0.00019887,2]
[359515903,1746087032377,-1516.57555653,0.00019887,2]
[359515904,1746087032387,-1516.57555653,0.00019887,2]
[359515905,1746087032397,-1516.57555653,0.00019887,2]
[359515906,1746087032406,-1516.57555653,0.00019887,2]
[359515907,1746087032417,-1516.57555653,0.00019887,2]
[359515908,1746087032427,-244.06973369,0.00019887,2]
[359515909,1746087032544,-1272.50582284,0.00019887,2]
[359515910,1746087032555,-1516.57555653,0.00019887,2]
[359515911,1746087032564,-1516.57555653,0.00019887,2]
[359515912,1746087032573,-1516.57555653,0.00019887,2]
[359515913,1746087032583,-1516.57555653,0.00019887,2]
[359515914,1746087032593,-1516.57555653,0.00019887,2]
[359515915,1746087032603,-1516.57555653,0.00019887,2]
[359515916,1746087032613,-1516.57555653,0.00019887,2]
[359515917,1746087032623,-1516.57555653,0.00019887,2]
[359515918,1746087032632,-1516.57555653,0.00019887,2]
[359515919,1746087032642,-1516.57555653,0.00019887,2]
[359515920,1746087032651,-1516.57555653,0.00019887,2]
[359515921,1746087032661,-1516.57555653,0.00019887,2]
[359515922,1746087032670,-1516.57555653,0.00019887,2]
[359515923,1746087032679,-1516.57555653,0.00019887,2]
[359515924,1746087032689,-1516.57555653,0.00019887,2]
[359515926,1746087032699,-1074.56174111,0.00019887,2]
[359515946,1746087038420,-442.01381542,0.00019887,2]
[359515947,1746087038430,-1516.57555653,0.00019887,2]
[359515948,1746087038441,-1516.57555653,0.00019887,2]
[359515949,1746087038454,-1516.57555653,0.00019887,2]
[359515950,1746087038464,-1516.57555653,0.00019887,2]
[359515951,1746087038474,-1516.57555653,0.00019887,2]
[359515952,1746087038483,-1516.57555653,0.00019887,2]
[359515953,1746087038494,-1327.06566615,0.00019887,2]
[359515954,1746087038522,-189.50989038,0.00019887,2]
[359515955,1746087038532,-1516.57555653,0.00019887,2]
[359515956,1746087038541,-400.10322018,0.00019887,2]
[359515957,1746087038553,-1116.47233635,0.00019887,2]
[359515959,1746087038562,-1516.57555653,0.00019887,2]
[359515961,1746087038571,-1516.57555653,0.00019887,2]
[359515963,1746087038581,-1516.57555653,0.00019887,2]
[359515964,1746087038590,-1516.57555653,0.00019887,2]
[359515966,1746087038599,-1516.57555653,0.00019887,2]
[359515969,1746087038609,-1516.57555653,0.00019887,2]
[359515970,1746087038619,-1516.57555653,0.00019887,2]
[359515972,1746087038629,-1516.57555653,0.00019887,2]
[359515974,1746087038639,-1516.57555653,0.00019887,2]
[359515976,1746087038648,-1516.57555653,0.00019887,2]
[359515978,1746087038657,-1774.7239747,0.00019887,2]
[359515980,1746087038667,-1774.7239747,0.00019887,2]
[359515982,1746087038676,-1774.7239747,0.00019887,2]
[359515984,1746087038685,-1774.7239747,0.00019887,2]
[359515986,1746087038695,-1774.7239747,0.00019887,2]
[359515988,1746087038705,-1774.7239747,0.00019887,2]
[359515990,1746087038715,-1774.7239747,0.00019887,2]
[359515992,1746087038724,-1774.7239747,0.00019887,2]
[359515994,1746087038733,-1774.7239747,0.00019887,2]
[359515996,1746087038742,-1774.7239747,0.00019887,2]
[359515998,1746087038752,-1774.7239747,0.00019887,2]
[359516000,1746087038761,-1774.7239747,0.00019887,2]
[359516002,1746087038770,-1774.7239747,0.00019887,2]
[359516004,1746087038779,-1774.7239747,0.00019887,2]
[359516006,1746087038788,-1774.7239747,0.00019887,2]
[359516008,1746087038798,-1774.7239747,0.00019887,2]
[359516010,1746087038807,-1774.7239747,0.00019887,2]
[359516012,1746087038817,-1774.7239747,0.00019887,2]
[359516014,1746087038826,-1774.7239747,0.00019887,2]
[359516016,1746087038835,-1774.7239747,0.00019887,2]
[359516018,1746087038844,-1774.7239747,0.00019887,2]
[359516020,1746087038854,-1774.7239747,0.00019887,2]
[359516022,1746087038864,-1774.7239747,0.00019887,2]
[359516024,1746087038873,-1774.7239747,0.00019887,2]
[359516026,1746087038882,-1774.7239747,0.00019887,2]
[359516028,1746087038891,-1774.7239747,0.00019887,2]
[359516030,1746087038901,-1774.7239747,0.00019887,2]
[359516032,1746087038910,-1774.7239747,0.00019887,2]